bitfinex/quotes_BTCUSD_20250205
["timestamp","ask_amount","ask_price","bid_price","bid_amount"]
[1738797079042,0.01109763,96785.0,96775.0,0.154998]
[1738797079260,0.01109763,96785.0,96776.0,0.154995]
[1738797079488,0.0001067,96787.0,96774.0,0.16330202]
[1738797079714,0.0001067,96787.0,96775.0,0.04530002]
[1738797079994,0.01109371,96786.0,96775.0,0.04530002]
[1738797080574,0.154982,96785.0,96773.0,0.08303019]
[1738797080763,0.206643,96785.0,96773.0,0.08303019]
[1738797080969,0.01109371,96786.0,96773.0,0.08303019]
[1738797080970,0.01109606,96784.0,96773.0,0.08303019]
[1738797082555,0.0001067,96787.0,96773.0,0.08303019]
[1738797082762,0.1550857,96787.0,96774.0,0.02380372]
[1738797082959,0.01109371,96786.0,96774.0,0.02380372]
[1738797083167,0.16607471,96786.0,96774.0,0.02380372]
[1738797083369,0.16607471,96786.0,96773.0,0.08303019]
[1738797083370,0.01109371,96786.0,96785.0,0.08303019]
[1738797083588,0.01109371,96786.0,96763.0,0.28972019]
[1738797083589,0.154997,96776.0,96763.0,0.08303019]
[1738797083861,0.00963113,96775.0,96773.0,0.08303019]
[1738797084333,0.206649,96783.0,96738.0,0.15913019]
[1738797084334,0.155013,96766.0,96738.0,0.15913019]
[1738797084557,0.10250365,96765.0,96758.0,0.08303019]
[1738797084690,0.155024,96759.0,96758.0,0.08303019]
[1738797085088,0.16463197,96759.0,96758.0,0.08303019]
[1738797085473,0.00960797,96759.0,96758.0,0.09134721]
[1738797085697,0.00960797,96759.0,96758.0,0.23805519]
[1738797085895,0.15,96774.0,96758.0,0.23805519]
[1738797086319,0.00962261,96773.0,96759.0,0.413397]
[1738797086517,0.00962261,96773.0,96760.0,0.00103339]
[1738797086792,0.154985,96783.0,96766.0,0.155012]
[1738797087061,0.16463437,96782.0,96766.0,0.155012]
[1738797087291,0.16463437,96782.0,96759.0,0.206699]
[1738797087292,0.206652,96781.0,96759.0,0.206699]
[1738797087465,0.155013,96767.0,96758.0,0.08303019]
[1738797087698,0.155007,96770.0,96758.0,0.08303019]
[1738797087852,0.00962182,96766.0,96758.0,0.08303019]
[1738797088228,0.155006,96770.0,96758.0,0.08303019]
[1738797088437,0.00962104,96765.0,96758.0,0.08303019]
[1738797088619,0.00100195,96790.0,96759.0,0.02898772]
[1738797088820,0.10250365,96786.0,96768.0,0.155009]
[1738797089032,0.00100195,96790.0,96769.0,0.08303019]
[1738797089249,0.00963282,96785.0,96770.0,0.155006]
[1738797089443,0.1550867,96787.0,96769.0,0.08303019]
[1738797089636,0.1550867,96787.0,96770.0,0.02897102]
[1738797089840,0.00965051,96786.0,96770.0,0.02897102]
[1738797090193,0.16463251,96786.0,96770.0,0.02897102]
[1738797090406,0.16463251,96786.0,96770.0,0.18397602]
[1738797091499,0.10250365,96785.0,96757.0,0.206702]
[1738797091706,0.10250365,96785.0,96730.0,0.21534498]
[1738797091707,0.155021,96761.0,96744.0,0.155047]
[1738797091909,0.155021,96761.0,96736.0,0.0808]
[1738797091910,0.155011,96767.0,96747.0,0.206723]
[1738797092110,0.206675,96771.0,96747.0,0.206723]
[1738797092111,0.361651,96778.0,96759.0,0.00831702]
[1738797092235,0.155015,96765.0,96759.0,0.00831702]
[1738797092503,0.206674,96771.0,96748.0,0.23807119]
[1738797092504,0.155017,96763.0,96748.0,0.23807119]
[1738797092702,0.155023,96760.0,96748.0,0.08303019]
[1738797092944,0.10250365,96777.0,96748.0,0.08303019]
[1738797092945,0.155028,96757.0,96748.0,0.08303019]
[1738797093318,0.01005828,96756.0,96748.0,0.08303019]
[1738797093655,0.0481,96773.0,96748.0,0.08303019]
[1738797093897,0.01007163,96772.0,96753.0,0.00845704]
[1738797094100,0.11257528,96772.0,96753.0,0.00845704]
[1738797094257,0.15502,96762.0,96753.0,0.00845704]
[1738797094472,0.010063,96761.0,96753.0,0.00845704]
[1738797094863,0.136018,96763.0,96753.0,0.00845704]
[1738797095081,0.16508378,96762.0,96754.0,0.02465272]
[1738797095283,0.01006378,96762.0,96754.0,0.02465272]
[1738797095763,0.155019,96762.0,96754.0,0.02465272]
[1738797095967,0.165084,96761.0,96754.0,0.02465272]
[1738797096223,0.010063,96761.0,96755.0,0.011614]
[1738797096461,0.10250365,96772.0,96755.0,0.011614]
[1738797096671,0.10250365,96772.0,96753.0,0.00845704]
[1738797096672,0.01007085,96771.0,96753.0,0.00845704]
[1738797096916,0.01007085,96771.0,96753.0,0.00014002]
[1738797096917,0.15503,96756.0,96753.0,0.00014002]
[1738797097176,0.10250365,96770.0,96753.0,0.00014002]
[1738797097177,0.25753465,96755.0,96753.0,0.00014002]
[1738797097401,0.26759117,96755.0,96753.0,0.00014002]
[1738797098261,0.023,96754.0,96753.0,0.00014002]
[1738797098473,0.18206999,96754.0,96753.0,0.00014002]
[1738797099344,0.33710199,96754.0,96753.0,0.00014002]
[1738797099552,0.31410199,96754.0,96753.0,0.00014002]
[1738797101317,0.33710199,96754.0,96753.0,0.00014002]
[1738797101631,0.3803607,96754.0,96753.0,0.00014002]
[1738797101875,0.3903607,96754.0,96753.0,0.00014002]
[1738797102100,0.35594199,96754.0,96753.0,0.00014002]
[1738797102371,0.34594199,96754.0,96753.0,0.00014002]
[1738797103157,0.40813199,96754.0,96753.0,0.00014002]
[1738797103561,0.40809199,96754.0,96753.0,0.00014002]
[1738797104134,0.31410199,96754.0,96753.0,0.00014002]
[1738797104481,0.32290199,96754.0,96753.0,0.00014002]
[1738797105060,0.31410199,96754.0,96753.0,0.00014002]
[1738797105271,0.26760199,96754.0,96753.0,0.00014002]
[1738797105431,0.01006634,96754.0,96753.0,0.00014002]
[1738797105626,0.155022,96760.0,96753.0,0.02082642]
[1738797105831,0.01009932,96759.0,96753.0,0.02082642]
[1738797106123,0.206688,96764.0,96753.0,0.02082642]
[1738797106351,0.01009853,96758.0,96753.0,0.00014002]
[1738797106647,0.01009774,96757.0,96754.0,0.01917129]
[1738797106850,0.155024,96759.0,96754.0,0.01917129]
[1738797107083,0.01009853,96758.0,96754.0,0.01917129]
[1738797107505,0.16512353,96758.0,96753.0,0.00014002]
[1738797107705,0.155025,96758.0,96753.0,0.00014002]
[1738797107910,0.01008507,96757.0,96753.0,0.00014002]
[1738797108127,0.155032,96754.0,96753.0,0.00014002]
[1738797108570,0.16511472,96754.0,96753.0,0.00014002]
[1738797108768,0.26761837,96754.0,96753.0,0.00014002]
[1738797109030,0.26761837,96754.0,96753.0,0.00036409]
[1738797110181,0.16511472,96754.0,96753.0,0.00036409]
[1738797110615,0.26761837,96754.0,96753.0,0.00036409]
[1738797110856,0.60493211,96754.0,96753.0,0.00036409]
[1738797111044,0.63793211,96754.0,96753.0,0.00036409]
[1738797111688,0.63793211,96754.0,96753.0,9e-08]
[1738797111805,0.63793211,96754.0,96708.0,0.08303019]
[1738797111806,0.155115,96703.0,96701.0,0.08303019]
[1738797112012,0.0100462,96702.0,96701.0,0.08303019]
[1738797112231,0.15511,96706.0,96694.0,0.233427]
[1738797112433,0.155103,96710.0,96698.0,0.155121]
[1738797112634,0.10250365,96709.0,96691.0,0.09108381]
[1738797112835,0.155117,96701.0,96691.0,0.09108381]
[1738797113213,0.16516242,96701.0,96700.0,0.50046678]
[1738797113420,0.26766607,96701.0,96700.0,0.50046678]
[1738797118629,0.27897455,96701.0,96700.0,0.50046678]
[1738797120540,0.16516242,96701.0,96700.0,0.55051346]
[1738797120760,0.01004542,96701.0,96700.0,0.55051346]
[1738797121189,0.155116,96702.0,96700.0,0.55073774]
[1738797121380,0.0103182,96701.0,96700.0,0.50069106]
[1738797122295,0.155117,96701.0,96700.0,0.50069106]
[1738797122476,0.26793885,96701.0,96700.0,0.50069106]
[1738797122679,0.1654352,96701.0,96700.0,0.50069106]
[1738797123646,0.0103182,96701.0,96700.0,0.50069106]
[1738797123855,0.1654352,96701.0,96700.0,0.50069106]
[1738797124061,0.155114,96703.0,96700.0,0.50069106]
[1738797124304,0.0103182,96701.0,96700.0,0.50069106]
[1738797124547,0.16543399,96702.0,96700.0,0.50069106]
[1738797124763,0.206817,96704.0,96700.0,0.50069106]
[1738797124764,0.1654352,96701.0,96700.0,0.50069106]
[1738797125235,0.1654352,96701.0,96700.0,0.55076017]
[1738797126053,0.1654352,96701.0,96700.0,0.50069106]
[1738797128196,0.0103182,96701.0,96700.0,0.50069106]
[1738797128602,0.21634693,96730.0,96700.0,0.57809106]
[1738797128741,0.155099,96713.0,96700.0,0.57809106]
[1738797128951,0.206776,96723.0,96713.0,0.155097]
[1738797129388,0.21634693,96740.0,96711.0,0.155099]
[1738797129548,0.155087,96720.0,96711.0,0.155099]
[1738797129749,0.155087,96720.0,96702.0,0.20682]
[1738797129968,0.206756,96732.0,96713.0,0.155097]
[1738797129969,0.155084,96722.0,96713.0,0.155097]
[1738797130206,0.206758,96731.0,96703.0,0.206818]
[1738797130514,0.206758,96731.0,96702.0,0.20682]
[1738797130515,0.10250365,96730.0,96714.0,0.155096]
[1738797130714,0.206765,96728.0,96704.0,0.02010776]
[1738797130867,0.155085,96721.0,96704.0,0.02010776]
[1738797131074,0.01131559,96734.0,96704.0,0.12261141]
[1738797131299,0.155079,96725.0,96705.0,0.058843]
[1738797131615,0.21534498,96730.0,96711.0,0.1551]
[1738797131845,0.21534498,96730.0,96705.0,0.07803539]
[1738797131846,0.155109,96706.0,96705.0,0.01919239]
[1738797132173,0.16541527,96706.0,96705.0,0.01919239]
[1738797132625,0.26791892,96706.0,96705.0,0.01919239]
[1738797132880,0.155117,96701.0,96700.0,0.50069106]
[1738797133278,0.16580102,96701.0,96700.0,0.50069106]
[1738797134692,0.16580102,96701.0,96700.0,0.55076017]
[1738797134693,0.01068402,96701.0,96700.0,0.55076017]
[1738797134902,0.16147838,96719.0,96700.0,0.55076017]
[1738797134903,0.155107,96708.0,96700.0,0.55076017]
[1738797135102,0.16578102,96707.0,96700.0,0.55076017]
[1738797135300,0.16578102,96707.0,96700.0,0.50069106]
[1738797135438,0.01067402,96707.0,96704.0,0.155111]
[1738797135643,0.155096,96714.0,96705.0,0.15511]
[1738797135845,0.01067874,96713.0,96705.0,0.15511]
[1738797136306,0.155097,96714.0,96705.0,0.15511]
[1738797136645,0.01067795,96712.0,96707.0,0.155107]
[1738797136840,0.01067795,96712.0,96701.0,0.01922356]
[1738797136841,0.01067874,96713.0,96704.0,0.0799]
[1738797137063,0.01067717,96711.0,96708.0,0.01922356]
[1738797137199,0.01067795,96712.0,96708.0,0.01922356]
[1738797137402,0.0457,96738.0,96709.0,0.03367124]
[1738797137610,0.155073,96729.0,96710.0,0.00103394]
[1738797137808,0.01069053,96728.0,96717.0,0.155091]
[1738797138030,0.01069053,96728.0,96710.0,0.04999942]
[1738797138213,0.01069053,96728.0,96710.0,0.25680142]
[1738797138410,0.21534498,96740.0,96710.0,0.25680142]
[1738797138411,0.206742,96739.0,96710.0,0.35930507]
[1738797138670,0.01068974,96727.0,96711.0,0.04964441]
[1738797138873,0.155078,96726.0,96716.0,0.155092]
[1738797139028,0.01069676,96725.0,96712.0,0.03080993]
[1738797139227,0.155073,96729.0,96713.0,0.413594]
[1738797139428,0.155076,96727.0,96717.0,0.15509]
[1738797139806,0.155082,96723.0,96718.0,0.0282724]
[1738797140027,0.21746854,96726.0,96712.0,0.23760893]
[1738797140253,0.155088,96719.0,96718.0,0.04999942]
[1738797140694,0.2682962,96719.0,96718.0,0.04999942]
[1738797141215,0.206791,96716.0,96694.0,0.155128]
[1738797141410,0.155115,96703.0,96688.0,0.20685]
[1738797141615,0.155117,96701.0,96689.0,0.155135]
[1738797141934,0.1658074,96701.0,96690.0,0.155134]
[1738797142841,0.1658074,96701.0,96687.0,0.206852]
[1738797143059,0.1658074,96701.0,96691.0,0.155133]
[1738797143844,0.1658074,96701.0,96689.0,0.155135]
[1738797144052,0.1658074,96701.0,96690.0,0.155134]
[1738797144348,0.1658074,96701.0,96691.0,0.155133]
[1738797145507,0.1658074,96701.0,96690.0,0.155134]
[1738797145910,0.1658074,96701.0,96687.0,0.206852]
[1738797146112,0.1658074,96701.0,96691.0,0.155133]
[1738797146438,0.1658074,96701.0,96687.0,0.206852]
[1738797146439,0.0106904,96701.0,96687.0,0.206852]
[1738797146776,0.0106904,96701.0,96697.0,0.155122]
[1738797146982,0.155111,96705.0,96697.0,0.155122]
[1738797147208,0.0106904,96701.0,96697.0,0.155122]
[1738797147471,0.155111,96705.0,96697.0,0.155122]
[1738797147849,0.01069276,96704.0,96697.0,0.155122]
[1738797148797,0.155116,96702.0,96686.0,0.206853]
[1738797149001,0.155116,96702.0,96685.0,0.0802]
[1738797149198,0.0106904,96701.0,96688.0,0.20685]
[1738797149411,0.1658074,96701.0,96685.0,0.287056]
[1738797149593,0.1658074,96701.0,96700.0,0.05076017]
[1738797149811,0.1658074,96701.0,96700.0,0.00069106]
[1738797150170,0.0106904,96701.0,96700.0,0.00069106]
[1738797150507,0.155109,96706.0,96700.0,0.00069106]
[1738797150712,0.155112,96704.0,96700.0,0.00069106]
[1738797150921,0.01069355,96705.0,96700.0,0.00069106]
[1738797151138,0.01069198,96703.0,96700.0,0.00069106]
[1738797151372,0.01069276,96704.0,96700.0,0.00069106]
[1738797151569,0.21534498,96710.0,96700.0,0.00069106]
[1738797151570,0.15511,96706.0,96700.0,0.00069106]
[1738797151792,0.01069198,96703.0,96700.0,0.00069106]
[1738797151978,0.155106,96709.0,96701.0,0.03626471]
[1738797152173,0.01069119,96702.0,96700.0,0.00069106]
[1738797152375,0.206795,96714.0,96700.0,0.00069106]
[1738797152669,0.01068239,96701.0,96700.0,0.00069106]
[1738797152843,0.155104,96710.0,96701.0,0.155116]
[1738797153059,0.155105,96709.0,96701.0,0.155116]
[1738797153251,0.206799,96713.0,96701.0,0.155116]
[1738797153414,0.155105,96709.0,96701.0,0.155116]
[1738797153623,0.155106,96708.0,96701.0,0.155116]
[1738797153819,0.206795,96714.0,96703.0,0.155113]
[1738797153820,0.155101,96711.0,96703.0,0.155113]
[1738797154031,0.155103,96710.0,96703.0,0.155113]
[1738797154239,0.20679,96717.0,96703.0,0.155113]
[1738797154240,0.206782,96721.0,96703.0,0.03626281]
[1738797154456,0.21807753,96725.0,96714.0,0.155095]
[1738797154676,0.21807753,96725.0,96704.0,0.00103399]
[1738797154677,0.155088,96719.0,96712.0,0.155099]
[1738797154903,0.01130453,96725.0,96709.0,0.206804]
[1738797155121,0.206765,96728.0,96703.0,0.206818]
[1738797155345,0.155089,96719.0,96710.0,0.155102]
[1738797155767,0.20678,96722.0,96712.0,0.155099]
[1738797155967,0.155087,96720.0,96712.0,0.155099]
[1738797156170,0.155088,96719.0,96711.0,0.155101]
[1738797156374,0.155088,96719.0,96712.0,0.0568719]
[1738797157058,0.15509,96718.0,96712.0,0.0568719]
[1738797157263,0.206777,96723.0,96702.0,0.20682]
[1738797157438,0.155083,96722.0,96713.0,0.155097]
[1738797157579,0.155073,96729.0,96720.0,0.155086]
[1738797157782,0.155076,96727.0,96718.0,0.15509]
[1738797158201,0.155074,96728.0,96719.0,0.155087]
[1738797158468,0.155076,96727.0,96719.0,0.155087]
[1738797158812,0.155077,96726.0,96717.0,0.206787]
[1738797159019,0.155077,96726.0,96718.0,0.0620381]
[1738797159448,0.206764,96729.0,96715.0,0.155093]
[1738797159650,0.14363512,96730.0,96705.0,0.206814]
[1738797159826,0.15509,96718.0,96706.0,0.20784588]
[1738797160024,0.155089,96719.0,96710.0,0.155102]
[1738797160247,0.20678,96721.0,96707.0,0.206809]
[1738797160248,0.01068729,96717.0,96712.0,0.155099]
[1738797160451,0.01068808,96718.0,96713.0,0.0361908]
[1738797160650,0.01068651,96716.0,96713.0,0.0361908]
[1738797160852,0.01068729,96717.0,96713.0,0.0361908]
[1738797161177,0.155088,96719.0,96713.0,0.0361908]
[1738797161521,0.01068651,96716.0,96713.0,0.0361908]
[1738797161695,0.15509,96718.0,96714.0,0.03980958]
[1738797161917,0.16577808,96718.0,96714.0,0.03980958]
[1738797163227,0.01068808,96718.0,96714.0,0.03980958]
[1738797163433,0.01068808,96718.0,96717.0,0.155091]
[1738797163607,0.155081,96724.0,96715.0,0.155093]
[1738797163809,0.155078,96726.0,96717.0,0.155091]
[1738797164047,0.01069855,96723.0,96718.0,0.0155091]
[1738797164235,0.155079,96725.0,96718.0,0.0155091]
[1738797164435,0.01069776,96722.0,96718.0,0.1705981]
[1738797164612,0.20676,96731.0,96718.0,0.1705981]
[1738797164816,0.01069698,96721.0,96718.0,0.0155091]
[1738797165181,0.206748,96736.0,96719.0,0.155088]
[1738797165182,0.01069619,96720.0,96719.0,0.155088]
[1738797165558,0.155072,96730.0,96719.0,0.155088]
[1738797165789,0.155073,96729.0,96721.0,0.155084]
[1738797165970,0.16577626,96729.0,96721.0,0.155084]
[1738797166169,0.01070326,96729.0,96674.0,0.5419]
[1738797166315,0.155075,96728.0,96719.0,0.155087]
[1738797166517,0.01070169,96727.0,96719.0,0.155087]
[1738797166718,0.01070169,96727.0,96718.0,0.155089]
[1738797166911,0.155077,96726.0,96718.0,0.155089]
[1738797167273,0.01070012,96725.0,96718.0,0.155089]
[1738797167483,0.01070012,96725.0,96719.0,0.02969296]
[1738797167909,0.16577912,96725.0,96717.0,0.155091]
[1738797168041,0.01069933,96724.0,96717.0,0.155091]
[1738797168859,0.01069933,96724.0,96714.0,0.206793]
[1738797169119,0.361838,96729.0,96720.0,0.155086]
[1738797169328,0.155076,96727.0,96718.0,0.155088]
[1738797169562,0.01070091,96726.0,96719.0,0.0155088]
[1738797169693,0.155094,96715.0,96707.0,0.155107]
[1738797169897,0.01069147,96714.0,96705.0,0.155109]
[1738797170120,0.155097,96714.0,96701.0,0.336821]
[1738797170326,0.01069069,96713.0,96706.0,0.155108]
[1738797170529,0.01069069,96713.0,96703.0,0.206816]
[1738797170829,0.155096,96715.0,96707.0,0.155106]
[1738797171380,0.01069147,96714.0,96707.0,0.155106]
[1738797171600,0.01069147,96714.0,96702.0,0.26445461]
[1738797171820,0.01069147,96714.0,96708.0,0.155105]
[1738797172045,0.15509,96718.0,96708.0,0.155105]
[1738797172206,0.01069069,96713.0,96708.0,0.155105]
[1738797172421,0.15509,96718.0,96706.0,0.155108]
[1738797172616,0.422262,96730.0,96703.0,0.0192483]
[1738797172825,0.16578583,96717.0,96705.0,0.361923]
[1738797173072,0.155088,96719.0,96705.0,0.206814]
[1738797173225,0.01069305,96716.0,96708.0,0.155105]
[1738797173421,0.01069462,96718.0,96708.0,0.155105]
[1738797173640,0.01069226,96715.0,96708.0,0.155105]
[1738797173842,0.01069383,96717.0,96709.0,0.02052387]
[1738797174019,0.206784,96720.0,96709.0,0.02052387]
[1738797174020,0.01068941,96714.0,96709.0,0.02052387]
[1738797174390,0.01068862,96713.0,96709.0,0.17562787]
[1738797174618,0.01068862,96713.0,96710.0,0.05635904]
[1738797174772,0.15509,96718.0,96707.0,0.155106]
[1738797175121,0.155087,96720.0,96708.0,0.155104]
[1738797175302,0.16578134,96719.0,96708.0,0.155105]
[1738797175476,0.16578134,96719.0,96705.0,0.206812]
[1738797175477,0.155091,96717.0,96705.0,0.206812]
[1738797175675,0.155091,96717.0,96700.0,0.20751406]
[1738797175676,0.155106,96708.0,96700.0,0.00069106]
[1738797175886,0.01068661,96707.0,96700.0,0.00069106]
[1738797176104,0.155112,96704.0,96700.0,0.00069106]
[1738797176301,0.01068346,96703.0,96700.0,0.00069106]
[1738797176707,0.155112,96705.0,96700.0,0.00069106]
[1738797177048,0.01068425,96704.0,96700.0,0.00069106]
[1738797177253,0.01068425,96704.0,96701.0,0.206823]
[1738797177452,0.01068425,96704.0,96702.0,0.00103408]
[1738797177453,0.01932262,96704.0,96702.0,0.00103408]
[1738797177656,0.01932262,96704.0,96703.0,0.287718]
[1738797177810,0.01932262,96704.0,96703.0,0.54022165]
[1738797178011,0.01932262,96704.0,96703.0,0.572303]
[1738797178295,0.01932262,96704.0,96703.0,0.6129208]
[1738797178503,0.08303019,96727.0,96721.0,0.155083]
[1738797178704,0.08303019,96727.0,96720.0,0.155086]
[1738797178879,0.00891315,96726.0,96720.0,0.155086]
[1738797179104,0.155071,96730.0,96721.0,0.0155086]
[1738797179267,0.21778694,96733.0,96721.0,0.0155086]
[1738797179268,0.16398751,96729.0,96721.0,0.0155086]
[1738797179865,0.01933017,96728.0,96721.0,0.0155086]
[1738797180066,0.00891394,96727.0,96721.0,0.0155086]
[1738797180313,0.00891394,96727.0,96722.0,0.17583951]
[1738797180517,0.00891394,96727.0,96722.0,0.02075651]
[1738797180741,0.00891394,96727.0,96723.0,0.155082]
[1738797180941,0.00891394,96727.0,96724.0,0.15508]
[1738797181141,0.206746,96737.0,96722.0,0.02075651]
[1738797181142,0.01142253,96740.0,96722.0,0.02075651]
[1738797181372,0.155061,96736.0,96725.0,0.155077]
[1738797181544,0.21566437,96739.0,96725.0,0.155077]
[1738797181545,0.155063,96735.0,96725.0,0.155077]
[1738797181779,0.42322095,96750.0,96717.0,0.15509]
[1738797181780,0.155074,96728.0,96717.0,0.15509]
[1738797181983,0.155074,96728.0,96718.0,0.170597]
[1738797182178,0.00891394,96727.0,96718.0,0.170597]
[1738797182384,0.00891394,96727.0,96718.0,0.015509]
[1738797182803,0.00891394,96727.0,96704.0,0.045]
[1738797182804,0.155072,96729.0,96708.0,0.155104]
[1738797183007,0.155087,96720.0,96703.0,0.28794128]
[1738797183209,0.155087,96720.0,96709.0,0.155103]
[1738797183416,0.00890765,96719.0,96710.0,0.155102]
[1738797183619,0.155093,96717.0,96710.0,0.04430423]
[1738797183780,0.155093,96717.0,96708.0,0.155105]
[1738797183983,0.0089053,96716.0,96707.0,0.20681]
[1738797184206,0.0089053,96716.0,96708.0,0.04947483]
[1738797184408,0.17442558,96719.0,96708.0,0.04947483]
[1738797184409,0.20679,96717.0,96708.0,0.04947483]
[1738797184569,0.20679,96717.0,96703.0,0.00022428]
[1738797184764,0.16400999,96716.0,96706.0,0.155108]
[1738797184966,0.00891699,96716.0,96703.0,0.00022428]
[1738797185364,0.155103,96710.0,96703.0,0.00022428]
[1738797185801,0.00890976,96709.0,96704.0,0.03628613]
[1738797186202,0.01123991,96722.0,96704.0,0.03628613]
[1738797186450,0.28979819,96727.0,96705.0,0.03315998]
[1738797186668,0.28979819,96727.0,96706.0,0.11142592]
[1738797186669,0.00891794,96721.0,96706.0,0.11142592]
[1738797186859,0.18553384,96727.0,96708.0,0.206808]
[1738797187107,0.00891715,96720.0,96709.0,0.03212592]
[1738797187232,0.19692189,96727.0,96707.0,0.03212592]
[1738797187635,0.155096,96714.0,96707.0,0.03212592]
[1738797187841,0.155104,96709.0,96700.0,0.15580806]
[1738797188039,0.00891103,96713.0,96704.0,0.03214439]
[1738797188235,0.0089071,96708.0,96701.0,0.155115]
[1738797188479,0.155101,96711.0,96702.0,0.155115]
[1738797188681,0.00890631,96707.0,96700.0,0.00069106]
[1738797188860,0.155104,96709.0,96700.0,0.15580806]
[1738797189062,0.1551,96712.0,96704.0,0.03628633]
[1738797189294,0.0089071,96708.0,96704.0,0.03628633]
[1738797189493,0.206793,96715.0,96700.0,0.00069106]
[1738797189706,0.155112,96704.0,96700.0,0.00069106]
[1738797189915,0.155108,96707.0,96700.0,0.00069106]
[1738797190063,0.00890396,96704.0,96700.0,0.00069106]
[1738797190267,0.155106,96708.0,96700.0,0.00069106]
[1738797190907,0.00890631,96707.0,96700.0,0.00069106]
[1738797191271,0.155105,96709.0,96700.0,0.00069106]
[1738797191524,0.155106,96708.0,96700.0,0.00069106]
[1738797191903,0.00890631,96707.0,96700.0,0.00069106]
[1738797192263,0.13958508,96706.0,96700.0,0.00069106]
[1738797192394,0.155111,96705.0,96700.0,0.00069106]
[1738797192595,0.10250365,96704.0,96700.0,0.00069106]
[1738797193000,0.11140003,96704.0,96700.0,0.00069106]
[1738797193874,0.02823347,96704.0,96700.0,0.00069106]
[1738797194975,0.02823347,96704.0,96703.0,0.01582781]
[1738797195297,0.01933709,96704.0,96703.0,0.00022428]
[1738797195458,0.02822309,96704.0,96703.0,0.00022428]
[1738797195818,0.18333509,96704.0,96703.0,0.00022428]
[1738797196116,0.28583874,96704.0,96703.0,0.00022428]
[1738797197573,0.02822309,96704.0,96703.0,0.00022428]
[1738797199356,0.008886,96704.0,96703.0,0.00022428]
[1738797201200,0.155099,96712.0,96703.0,0.00022428]
[1738797201403,0.01128307,96714.0,96703.0,0.00022428]
[1738797201610,0.15,96719.0,96703.0,0.00022428]
[1738797201820,0.30928965,96718.0,96703.0,0.00022428]
[1738797202062,0.31703314,96718.0,96703.0,0.00022428]
[1738797202257,0.155108,96707.0,96703.0,0.00022428]
[1738797202589,0.00773406,96706.0,96703.0,0.00022428]
[1738797202973,0.00773406,96706.0,96704.0,0.01560373]
[1738797203274,0.00773406,96706.0,96703.0,0.00022428]
[1738797203275,0.155102,96710.0,96703.0,0.00022428]
[1738797203499,0.206788,96717.0,96703.0,0.00022428]
[1738797203500,0.00773327,96705.0,96703.0,0.00022428]
[1738797203703,0.155102,96711.0,96703.0,0.00022428]
[1738797203900,0.00773248,96704.0,96703.0,0.00022428]
[1738797204121,0.155104,96710.0,96703.0,0.00022428]
[1738797204317,0.00773248,96704.0,96703.0,0.00022428]
[1738797204521,0.155105,96709.0,96703.0,0.00022428]
[1738797204762,0.00783928,96704.0,96703.0,0.00022428]
[1738797204971,0.0001068,96704.0,96703.0,0.00022428]
[1738797205262,0.00783928,96704.0,96703.0,0.00022428]
[1738797206792,0.11034293,96704.0,96703.0,0.00022428]
[1738797206993,0.12134732,96704.0,96703.0,0.00022428]
[1738797208302,0.14066561,96704.0,96703.0,0.00022428]
[1738797208547,0.29577761,96704.0,96703.0,0.00022428]
[1738797210113,0.02715757,96704.0,96703.0,0.00022428]
[1738797210318,0.00783928,96704.0,96703.0,0.00022428]
[1738797210521,0.00783928,96704.0,96703.0,0.00802581]
[1738797210651,0.0001068,96704.0,96703.0,0.00802581]
[1738797211060,0.00783844,96704.0,96703.0,0.00802581]
[1738797211380,0.0001068,96704.0,96703.0,0.00802581]
[1738797211576,0.00783844,96704.0,96703.0,0.00802581]
[1738797212479,0.0001068,96704.0,96703.0,0.00802581]
[1738797212679,0.00783844,96704.0,96703.0,0.00802581]
[1738797213695,0.00783844,96704.0,96703.0,0.00022428]
[1738797214066,0.0001068,96704.0,96703.0,0.00022428]
[1738797214267,0.00783844,96704.0,96703.0,0.00022428]
[1738797217022,0.11034209,96704.0,96703.0,0.00022428]
[1738797219555,0.12143156,96704.0,96703.0,0.00022428]
[1738797222135,0.27654356,96704.0,96703.0,0.00022428]
[1738797225641,0.01892791,96704.0,96703.0,0.00022428]
[1738797225867,0.17403991,96704.0,96703.0,0.00022428]
[1738797226772,0.27654356,96704.0,96703.0,0.00022428]
[1738797227898,0.295894,96704.0,96703.0,0.00022428]
[1738797228549,0.02718888,96704.0,96703.0,0.00022428]
[1738797229078,0.18230088,96704.0,96703.0,0.00022428]
[1738797229234,0.02718888,96704.0,96703.0,0.00022428]
[1738797229598,0.18230088,96704.0,96703.0,0.00022428]
[1738797230420,0.02718888,96704.0,96703.0,0.01582831]
[1738797231658,0.18230088,96704.0,96703.0,0.00022428]
[1738797231880,0.28480453,96704.0,96703.0,0.00022428]
[1738797232105,0.54209453,96704.0,96703.0,0.00022428]
[1738797232545,0.56509453,96704.0,96703.0,0.00022428]
[1738797232745,0.59604495,96704.0,96703.0,0.00022428]
[1738797232948,0.53385495,96704.0,96703.0,0.00022428]
[1738797233157,0.61005729,96704.0,96703.0,0.00022428]
[1738797237384,0.93515729,96704.0,96703.0,0.00022428]
[1738797239674,0.01,96701.0,96700.0,0.00069106]
[1738797240026,0.305149,96681.0,96670.0,0.00022428]
[1738797240192,0.74131265,96681.0,96670.0,0.00022428]
[1738797240390,0.78165158,96681.0,96670.0,0.00022428]
[1738797240596,0.79054186,96681.0,96670.0,0.00022428]
[1738797241337,0.75020293,96681.0,96670.0,0.00022428]
[1738797241755,0.80050379,96681.0,96670.0,0.00022428]
[1738797242173,0.82350379,96681.0,96670.0,0.00022428]
[1738797242799,0.89569379,96681.0,96680.0,7e-08]
[1738797243008,0.89569379,96681.0,96673.0,2.8e-07]
[1738797243009,0.41416,96674.0,96673.0,2.8e-07]
[1738797243218,0.51553037,96674.0,96673.0,2.8e-07]
[1738797244552,0.86063037,96674.0,96673.0,2.8e-07]
[1738797244796,0.91093123,96674.0,96673.0,2.8e-07]
[1738797244972,1.01343488,96674.0,96673.0,2.8e-07]
[1738797245177,0.338171,96667.0,96663.0,0.00022428]
[1738797245370,0.338171,96667.0,96666.0,0.00036427]
[1738797245371,0.44067465,96667.0,96666.0,0.00036427]
[1738797245575,0.45067465,96667.0,96666.0,0.00036427]
[1738797245812,0.45953239,96667.0,96666.0,0.00036427]
[1738797246022,0.51145444,96667.0,96666.0,0.00036427]
[1738797246224,0.5617553,96667.0,96666.0,0.00036427]
[1738797246653,0.5517553,96667.0,96666.0,0.00036427]
[1738797246873,0.5417553,96667.0,96666.0,0.00036427]
[1738797247080,0.46683325,96667.0,96666.0,0.00036427]
[1738797247287,0.31683325,96667.0,96666.0,0.00036427]